bitfinex-derivatives/quotes_SOLF0:USTF0_20250911
["timestamp","ask_amount","ask_price","bid_price","bid_amount"]
[1757598296467,220.0349226,227.64,227.35,6.87]
[1757598296667,2.17990972,227.53,227.37,9.04990972]
[1757598296865,2.17990972,227.49,227.37,6.87]
[1757598297261,59.88,227.53,227.37,6.87]
[1757598297569,2.17990972,227.52,227.37,6.87]
[1757598297769,13.16,227.59,227.37,6.87]
[1757598297971,2.17990972,227.53,227.37,6.87]
[1757598298569,2.17990972,227.53,227.38,62.0]
[1757598298860,2.17990972,227.53,227.39,7.4]
[1757598299070,2.17990972,227.54,227.39,7.4]
[1757598299266,169.02680064,227.65,227.44,7.4]
[1757598299267,2.17990972,227.56,227.44,7.4]
[1757598299465,2.17990972,227.59,227.45,7.4]
[1757598299669,47.1,227.62,227.45,7.4]
[1757598299871,2.17990972,227.6,227.45,7.4]
[1757598300071,2.17990972,227.56,227.45,7.4]
[1757598300473,2.17990972,227.53,227.4,7.4]
[1757598300869,13.16,227.62,227.4,7.4]
[1757598301065,13.16,227.62,227.38,62.0]
[1757598301066,3.03542833,227.61,227.42,7.4]
[1757598301370,2.17990972,227.52,227.42,7.4]
[1757598301572,2.17990972,227.49,227.42,7.4]
[1757598301967,2.17990972,227.52,227.42,7.4]
[1757598302368,13.16,227.6,227.42,7.4]
[1757598302369,107.42,227.59,227.42,7.4]
[1757598302572,3.03493123,227.58,227.42,7.4]
[1757598302776,107.42,227.59,227.42,7.4]
[1757598303075,3.03485159,227.58,227.42,7.4]
[1757598303376,3.03544578,227.57,227.42,7.4]
[1757598303677,3.03544578,227.56,227.42,7.4]
[1757598303976,120.58,227.59,227.42,7.4]
[1757598303977,3.03544578,227.55,227.42,7.4]
[1757598304172,3.03544578,227.54,227.42,7.4]
[1757598304379,4.90763007,227.64,227.42,7.4]
[1757598304575,13.16,227.62,227.42,7.4]
[1757598304776,16.19552093,227.61,227.42,7.4]
[1757598304972,101.82,227.63,227.42,7.4]
[1757598304973,13.16,227.58,227.42,7.4]
[1757598305180,16.19552093,227.57,227.42,7.4]
[1757598305374,3.03552093,227.56,227.42,7.4]
[1757598305881,3.03552093,227.56,227.31,9.0]
[1757598305882,18.35506551,227.48,227.31,7.4]
[1757598306076,13.16,227.46,227.31,7.4]
[1757598306276,25.65552093,227.45,227.31,7.4]
[1757598306574,295.38,227.47,227.31,7.4]
[1757598306778,123.84,227.56,227.34,7.4]
[1757598306974,295.38,227.66,227.39,7.4]
[1757598307175,3.03402337,227.64,227.41,7.4]
[1757598307479,3.03402337,227.63,227.41,7.4]
[1757598307679,3.03402337,227.62,227.41,7.4]
[1757598307880,3.03402337,227.61,227.41,7.4]
[1757598308177,3.03557445,227.6,227.41,7.4]
[1757598308371,3.03659195,227.59,227.41,7.4]
[1757598308573,123.86,227.62,227.41,7.4]
[1757598308574,3.03672223,227.58,227.41,7.4]
[1757598308779,5.19506551,227.63,227.41,7.4]
[1757598308978,3.03658916,227.62,227.41,7.4]
[1757598309276,3.03658916,227.62,227.28,13.17]
[1757598309277,13.16,227.75,227.45,7.4]
[1757598309475,20.1,227.74,227.5,7.4]
[1757598309675,16.19593975,227.73,227.5,7.4]
[1757598309976,18.35506551,227.65,227.5,7.4]
[1757598310178,5.19506551,227.6,227.36,7.4]
[1757598310370,8.23100526,227.59,227.36,7.4]
[1757598310679,126.87593975,227.58,227.36,7.4]
[1757598310880,3.03593975,227.57,227.36,7.4]
[1757598311482,126.87593975,227.56,227.36,7.4]
[1757598311682,126.8813799,227.55,227.36,7.4]
[1757598311877,5.19506551,227.59,227.36,7.4]
[1757598312077,3.04144182,227.58,227.36,7.4]
[1757598312377,123.84,227.6,227.36,7.4]
[1757598312578,295.38,227.63,227.41,7.4]
[1757598312880,3.04222818,227.62,227.42,7.4]
[1757598313082,3.04222818,227.61,227.43,62.0]
[1757598313276,5.19506551,227.57,227.3,7.4]
[1757598313575,3.04222818,227.56,227.3,7.4]
[1757598314081,16.84,227.55,227.3,7.4]
[1757598314280,3.04222818,227.54,227.3,7.4]
[1757598314672,3.04222818,227.54,227.34,7.4]
[1757598314981,27.62,227.57,227.34,7.4]
[1757598315181,3.04679403,227.56,227.34,7.4]
[1757598315385,3.04679403,227.55,227.34,7.4]
[1757598315680,3.04887306,227.54,227.34,7.4]
[1757598315976,3.04899212,227.53,227.36,7.4]
[1757598316176,3.04899212,227.52,227.36,7.4]
[1757598316484,3.04899212,227.51,227.36,7.4]
[1757598316677,3.04899212,227.5,227.36,7.4]
[1757598316883,113.36763007,227.58,227.36,7.4]
[1757598317072,3.05149327,227.57,227.36,7.4]
[1757598317377,165.41914928,227.61,227.37,7.4]
[1757598317378,3.05149327,227.56,227.37,7.4]
[1757598317681,165.41914928,227.61,227.37,7.4]
[1757598317884,3.0528533,227.6,227.37,7.4]
[1757598318083,295.38,227.63,227.37,7.4]
[1757598318278,3.05293722,227.62,227.37,7.4]
[1757598318484,3.05293722,227.61,227.38,7.4]
[1757598318684,3.05293722,227.6,227.4,7.4]
[1757598318977,295.38,227.63,227.43,7.4]
[1757598319182,129.01506551,227.68,227.43,7.4]
[1757598319380,3.05593606,227.67,227.43,7.4]
[1757598319577,3.05593606,227.66,227.43,7.4]
[1757598319784,3.05593606,227.65,227.44,5.19506551]
[1757598319975,9.35506551,227.77,227.5,7.4]
[1757598320283,7.96246411,227.76,227.52,7.4]
[1757598320478,4.90763007,227.76,227.52,7.4]
[1757598320680,3.0589383,227.75,227.53,7.4]
[1757598320881,5.19506551,227.72,227.53,7.4]
[1757598321186,3.0589383,227.71,227.53,7.4]
[1757598321377,3.0589383,227.7,227.53,7.4]
[1757598321576,5.19506551,227.67,227.53,7.4]
[1757598321780,5.19506551,227.67,227.45,295.38]
[1757598321781,3.0589383,227.66,227.46,7.4]
[1757598321982,5.19506551,227.58,227.37,7.4]
[1757598322188,3.0589383,227.57,227.37,7.4]
[1757598322885,34.66481373,227.69,227.42,7.4]
[1757598322886,4.90763007,227.69,227.42,7.4]
[1757598323086,8.25840767,227.68,227.42,7.4]
[1757598323285,3.06334216,227.67,227.44,7.4]
[1757598323475,3.06334216,227.67,227.39,5.19506551]
[1757598323476,3.06334216,227.66,227.46,7.4]
[1757598323676,3.06334216,227.65,227.46,7.4]
[1757598323880,3.06334216,227.64,227.46,7.4]
[1757598324085,5.19506551,227.68,227.46,7.4]
[1757598324086,3.06334216,227.63,227.46,7.4]
[1757598324288,3.06334216,227.62,227.46,7.4]
[1757598324486,3.06334216,227.61,227.46,7.4]
[1757598324678,5.19506551,227.68,227.46,7.4]
[1757598324982,3.01857819,227.67,227.46,7.4]
[1757598325182,3.01857819,227.66,227.46,7.4]
[1757598325384,12.28,227.71,227.46,7.4]
[1757598325683,3.01856089,227.7,227.46,7.4]
[1757598325888,3.01856089,227.69,227.48,7.4]
[1757598326189,3.01856089,227.68,227.48,7.4]
[1757598326388,3.01856089,227.67,227.48,7.4]
[1757598326685,3.01856089,227.66,227.48,7.4]
[1757598326889,3.01856089,227.65,227.48,7.4]
[1757598327087,3.01856089,227.64,227.49,62.0]
[1757598327288,12.28,227.71,227.5,7.4]
[1757598327488,3.01969221,227.7,227.5,7.4]
[1757598327692,3.01969221,227.69,227.5,7.4]
[1757598327891,3.01969221,227.68,227.5,7.4]
[1757598328091,21.45506551,227.76,227.5,7.4]
[1757598328385,3.01824444,227.75,227.5,7.4]
[1757598328586,3.01824444,227.74,227.5,7.4]
[1757598328784,3.01824444,227.73,227.5,7.4]
[1757598328988,21.45506551,227.76,227.5,7.4]
[1757598328989,3.01824444,227.72,227.5,7.4]
[1757598329190,21.45506551,227.76,227.5,7.4]
[1757598329385,3.01664966,227.75,227.5,7.4]
[1757598329586,3.01664966,227.74,227.52,7.23]
[1757598329791,3.01668263,227.73,227.52,7.23]
[1757598330084,3.01668263,227.72,227.52,7.23]
[1757598330285,3.01668263,227.71,227.52,7.23]
[1757598330484,5.19506551,227.69,227.52,7.23]
[1757598330680,3.01668263,227.68,227.52,7.23]
[1757598331794,5.19506551,227.74,227.52,7.23]
[1757598331986,3.01660263,227.73,227.52,7.23]
[1757598332187,3.01660263,227.72,227.52,7.23]
[1757598332487,3.01660263,227.71,227.52,7.23]
[1757598332689,141.80763007,227.76,227.52,7.23]
[1757598332690,5.19506551,227.69,227.52,7.23]
[1757598332884,3.01660263,227.68,227.52,7.23]
[1757598333090,3.01660263,227.67,227.46,7.23]
[1757598333294,24.51660263,227.66,227.46,7.23]
[1757598333492,3.01660263,227.65,227.46,7.23]
[1757598333796,3.01660263,227.65,227.47,62.0]
[1757598334388,5.19506551,227.64,227.47,62.0]
[1757598334990,3.01712127,227.63,227.48,7.23]
[1757598335186,5.19506551,227.64,227.48,7.23]
[1757598336894,19.15506551,227.69,227.48,7.23]
[1757598337088,3.01690214,227.68,227.48,7.23]
[1757598337284,19.15506551,227.69,227.48,7.23]
[1757598337285,5.19506551,227.69,227.48,7.23]
[1757598337484,3.01660794,227.68,227.48,7.23]
[1757598337689,5.19506551,227.69,227.48,7.23]
[1757598337885,3.01660788,227.68,227.49,62.0]
[1757598338192,5.19506551,227.69,227.5,7.23]
[1757598338491,3.01677272,227.68,227.5,7.23]
[1757598338796,5.19506551,227.74,227.5,7.23]
[1757598338991,3.01625068,227.73,227.5,7.23]
[1757598339192,5.19506551,227.74,227.5,7.23]
[1757598339391,3.01576294,227.73,227.5,7.23]
[1757598339595,5.19506551,227.74,227.5,7.23]
[1757598339796,5.19506551,227.79,227.5,7.23]
[1757598340095,3.01523368,227.78,227.5,7.23]
[1757598340290,5.19506551,227.74,227.49,7.23]
[1757598340493,5.19506551,227.69,227.51,7.23]
[1757598340697,3.01477712,227.68,227.51,7.23]
[1757598341094,5.19506551,227.64,227.46,7.23]
[1757598341390,5.19506551,227.64,227.46,69.23]
[1757598341804,5.19506551,227.63,227.46,69.23]
[1757598342694,5.19506551,227.58,227.4,7.23]
[1757598343389,3.01766449,227.57,227.4,7.23]
[1757598343593,3.01766449,227.56,227.4,7.23]
[1757598343792,5.19506551,227.58,227.4,7.23]
[1757598344097,3.01808563,227.57,227.4,7.23]
[1757598344299,5.19506551,227.53,227.4,7.23]
[1757598344488,3.01808563,227.52,227.31,7.23]
[1757598344686,3.01808563,227.52,227.32,123.7]
[1757598344887,3.01808563,227.52,227.33,7.23]
[1757598345697,3.01808563,227.52,227.34,62.0]
[1757598346199,3.01808563,227.52,227.33,7.23]
[1757598346399,5.19506551,227.48,227.33,7.23]
[1757598347496,3.0171145,227.47,227.33,7.23]
[1757598347800,3.01717404,227.46,227.33,7.23]
[1757598348098,26.21506551,227.48,227.26,7.23]
[1757598348299,3.0158412,227.47,227.26,7.23]
[1757598348496,5.19506551,227.43,227.26,7.23]
[1757598349302,0.03,227.41,227.26,7.23]
[1757598349796,0.03,227.39,227.26,7.23]
[1757598350299,120.72,227.42,227.13,7.23]
[1757598350300,0.03,227.36,227.13,7.23]
[1757598350502,0.03,227.33,227.13,7.23]
[1757598350805,3.01776317,227.32,227.13,7.23]
[1757598351005,0.03,227.3,227.15,0.76584507]
[1757598351204,0.03,227.3,227.16,7.23]
[1757598351900,5.19506551,227.33,227.16,7.23]
[1757598352104,5.19506551,227.28,227.1,7.23]
[1757598352305,3.04508374,227.27,227.1,7.23]
[1757598352604,3.01508374,227.26,227.1,7.23]
[1757598352800,0.03,227.27,227.1,7.23]
[1757598353202,113.28506551,227.27,227.1,69.23]
[1757598353400,0.03,227.27,227.1,69.23]
[1757598353703,123.75,227.27,227.1,7.23]
[1757598353896,123.72,227.26,227.1,7.23]
[1757598354094,0.03,227.27,227.1,7.23]
[1757598354499,295.42,227.32,227.1,7.23]
[1757598354694,123.74,227.31,227.1,7.23]
[1757598355200,5.19506551,227.28,227.1,7.23]
[1757598355703,123.74,227.29,227.1,7.23]
[1757598355905,0.03,227.3,227.1,7.23]
[1757598356300,405.52,227.32,227.1,7.23]
[1757598356602,295.42,227.32,227.12,7.23]
[1757598357000,295.42,227.32,227.12,26.12]
[1757598357306,295.42,227.32,227.13,7.23]
[1757598357495,0.03,227.35,227.13,7.23]
[1757598357695,0.03,227.31,227.13,7.23]
[1757598358502,45.83,227.31,227.13,7.23]
[1757598359107,0.03,227.31,227.13,7.23]
[1757598359398,34.33322013,227.41,227.13,7.23]
[1757598359399,0.03,227.37,227.13,7.23]
[1757598360199,0.03,227.37,227.14,62.0]
[1757598360403,0.03,227.37,227.15,7.33]
[1757598361199,21.77024839,227.38,227.15,7.33]
[1757598361404,0.03,227.37,227.15,7.33]
[1757598361605,123.74,227.36,227.15,7.33]
[1757598361901,0.03,227.37,227.15,7.33]
[1757598362304,0.03,227.44,227.15,7.33]
[1757598362499,0.03,227.44,227.2,7.33]
[1757598362700,5.73,227.51,227.25,8.61024839]
[1757598363002,5.7,227.51,227.27,7.33]
[1757598363201,0.03,227.5,227.27,7.33]
[1757598363506,0.03,227.49,227.28,62.0]
[1757598363700,0.03,227.48,227.29,7.33]
[1757598364316,0.03,227.52,227.29,7.33]
[1757598364508,0.03,227.52,227.26,7.33]
[1757598364705,0.03,227.52,227.27,123.74]
[1757598364907,0.03,227.55,227.28,7.33]
[1757598365211,0.03,227.51,227.25,295.64]
[1757598365406,8.61024839,227.46,227.25,295.64]
[1757598365603,8.61024839,227.4,227.12,295.6]
[1757598365801,94.78,227.39,227.12,426.65]
[1757598366006,0.03,227.37,227.12,419.32]
[1757598366203,0.03,227.37,227.13,7.33]
[1757598367012,419.32,227.4,227.19,7.33]
[1757598367510,0.03,227.39,227.19,131.05]
[1757598367710,0.03,227.39,227.19,7.33]
[1757598368012,0.03,227.39,227.2,7.33]
[1757598369409,123.72,227.43,227.2,7.33]
[1757598369608,123.72,227.43,227.22,7.33]
[1757598369814,0.03,227.45,227.22,7.33]
[1757598370106,0.03,227.45,227.23,61.56]
[1757598370309,0.03,227.45,227.24,7.33]
[1757598370509,0.03,227.45,227.26,7.33]
[1757598370710,0.03,227.42,227.22,43.96]
[1757598370911,21.77024839,227.43,227.2,7.33]
[1757598371113,8.61024839,227.43,227.2,7.33]
[1757598371508,0.03,227.42,227.2,7.33]
[1757598371711,8.61024839,227.37,227.2,7.33]
[1757598371908,67.82,227.36,227.2,7.33]
[1757598372108,0.03,227.35,227.12,295.6]
[1757598372310,67.82,227.36,227.13,7.33]
[1757598372512,0.03,227.35,227.13,7.33]
[1757598373818,48.81,227.35,227.15,7.33]
[1757598374211,48.78,227.35,227.15,7.33]
[1757598374814,0.03,227.41,227.15,7.33]
[1757598377219,0.03,227.41,227.2,7.33]
[1757598377519,0.03,227.47,227.22,7.33]
[1757598378117,0.03,227.47,227.24,7.33]
[1757598378309,295.63,227.53,227.24,7.33]
[1757598378512,6.27602775,227.52,227.24,7.33]
[1757598378717,295.63,227.53,227.24,7.33]
[1757598378917,6.27565799,227.52,227.24,7.33]
[1757598379116,295.63,227.53,227.24,7.33]
[1757598379321,0.03,227.53,227.25,20.5]
[1757598379519,0.03,227.53,227.31,7.33]
[1757598379722,0.03,227.53,227.33,7.33]
[1757598379916,0.03,227.53,227.34,123.7]
[1757598380120,0.03,227.53,227.36,7.33]
[1757598380824,0.03,227.6,227.38,7.33]
[1757598381819,0.03,227.6,227.4,7.33]
[1757598382022,0.03,227.6,227.42,7.33]
[1757598383219,0.03,227.6,227.44,7.33]
[1757598384326,0.03,227.6,227.45,62.0]
[1757598384529,0.03,227.6,227.46,7.33]
[1757598384822,295.65,227.67,227.46,7.33]
[1757598385223,3.00429585,227.66,227.46,7.33]
[1757598385429,295.65,227.67,227.46,7.33]
[1757598385622,295.65,227.67,227.47,8.54]
[1757598385822,295.65,227.67,227.48,13.61]
[1757598386328,295.65,227.67,227.49,7.33]
[1757598387829,295.65,227.67,227.5,62.0]
[1757598388036,295.65,227.67,227.51,7.49]
[1757598389618,295.62,227.67,227.51,7.49]
[1757598389929,0.03,227.65,227.46,7.49]
[1757598390127,295.62,227.67,227.46,7.49]
[1757598390323,2.99962522,227.66,227.39,7.49]
[1757598390527,8.61024839,227.58,227.39,7.49]
[1757598390728,0.03,227.56,227.39,7.49]
[1757598391825,0.03,227.54,227.39,7.49]
[1757598392023,8.2,227.53,227.39,7.49]
[1757598392223,14.91,227.54,227.39,7.49]
[1757598392426,0.03,227.54,227.39,7.49]
[1757598392822,0.03,227.54,227.4,62.0]
[1757598394629,8.61024839,227.55,227.31,7.49]
[1757598394832,0.03,227.54,227.31,7.49]
[1757598395330,0.03,227.54,227.32,7.49]
[1757598396132,36.03024839,227.55,227.32,7.49]
[1757598396728,3.00088273,227.54,227.32,7.49]
[1757598396933,0.03,227.53,227.32,7.49]
[1757598397234,0.03,227.54,227.32,7.49]
[1757598397431,3.00246676,227.53,227.32,7.49]
[1757598397727,36.03024839,227.55,227.32,69.49]
[1757598397728,3.00246676,227.52,227.32,69.49]
[1757598398033,0.03,227.51,227.32,69.49]
[1757598398429,15.77,227.51,227.33,7.49]
[1757598398628,0.03,227.51,227.33,7.49]
[1757598399629,8.61024839,227.61,227.33,7.49]
[1757598399830,119.49546146,227.6,227.33,7.49]
[1757598400032,3.00546146,227.59,227.33,7.49]
[1757598400326,0.03,227.57,227.33,7.49]
[1757598400525,116.46,227.6,227.33,7.49]
[1757598400731,0.03,227.58,227.33,7.49]
[1757598400933,116.46,227.6,227.35,7.49]
[1757598401131,0.03,227.58,227.35,7.49]
[1757598401332,3.00658064,227.57,227.35,7.49]
[1757598402044,0.03,227.58,227.35,7.49]
[1757598402640,8.61024839,227.65,227.41,62.0]
[1757598402838,0.03,227.63,227.42,7.49]
[1757598403044,0.03,227.63,227.41,62.0]
[1757598403045,0.03,227.63,227.44,7.49]
[1757598404135,295.62,227.67,227.44,7.49]
[1757598404339,0.03,227.65,227.45,57.8]
[1757598404548,0.03,227.65,227.46,69.95]
[1757598404844,0.03,227.65,227.46,62.46]
[1757598405046,0.03,227.65,227.47,7.49]
[1757598406647,295.62,227.67,227.47,7.49]
[1757598407352,0.03,227.7,227.47,7.49]
[1757598407741,0.03,227.7,227.49,7.49]
[1757598408138,0.03,227.7,227.51,7.49]
[1757598409845,0.03,227.76,227.51,7.49]
[1757598410052,0.03,227.76,227.52,123.36]
[1757598410349,0.03,227.76,227.53,7.49]
[1757598411249,0.03,227.76,227.55,7.49]
[1757598412750,0.03,227.76,227.57,7.49]
[1757598413050,0.03,227.76,227.57,14.73]
[1757598413251,0.03,227.76,227.58,7.49]
[1757598414653,0.03,227.76,227.59,62.0]
[1757598414854,0.03,227.81,227.6,7.49]
[1757598415246,0.03,227.89,227.6,16.10024839]
[1757598415553,0.03,227.89,227.55,26.36930819]
[1757598415554,11.5927184,227.88,227.62,7.49]
[1757598415747,3.01280905,227.87,227.64,7.49]
[1757598415946,0.03,227.87,227.64,7.49]
[1757598416352,0.03,227.87,227.66,7.49]
[1757598416353,5.18197597,227.86,227.66,7.49]
[1757598416750,0.03,227.85,227.66,12.07]
[1757598417347,0.03,227.85,227.67,7.09]
[1757598418148,0.03,227.85,227.69,7.09]
[1757598421151,5.18197597,227.89,227.69,7.09]
[1757598421357,5.18197597,227.92,227.69,7.09]
[1757598421655,5.18197597,227.92,227.66,5.18197597]
[1757598421656,5.21197597,227.92,227.76,7.09]
[1757598421851,0.03,227.92,227.76,7.09]
[1757598423256,0.03,228.01,227.76,7.09]
[1757598423462,2.98128683,228.0,227.78,7.09]
[1757598423663,0.03,228.01,227.78,7.09]
[1757598424565,0.03,228.01,227.8,7.09]
[1757598424764,5.18197597,228.04,227.8,7.09]
[1757598425162,0.03,228.02,227.86,7.09]
[1757598426266,5.18197597,228.07,227.86,7.09]
[1757598426661,5.21197597,228.08,227.86,20.40732519]
[1757598426862,5.21197597,228.08,227.87,7.09]
[1757598427165,0.03,228.02,227.87,7.09]
[1757598428263,5.18197597,228.03,227.87,7.09]
[1757598428462,5.21197597,228.07,227.87,7.09]
[1757598428661,0.03,228.07,227.89,7.09]
[1757598428861,5.18197597,228.04,227.89,7.09]
[1757598429669,0.03,228.03,227.89,7.09]
[1757598431062,5.18197597,228.04,227.89,7.09]
[1757598431463,5.21197597,228.08,227.89,7.09]
[1757598432164,0.03,228.08,227.9,62.0]
[1757598432365,0.03,228.08,227.91,7.09]
[1757598434169,5.18197597,228.1,227.91,7.09]
[1757598434668,5.18197597,228.13,227.91,7.09]
[1757598437372,5.18197597,228.13,227.97,62.0]
[1757598437565,5.18197597,228.13,227.98,7.09]
[1757598437868,5.18197597,228.13,227.86,13.38707696]
[1757598437869,0.03,228.22,228.0,7.09]
[1757598438069,0.03,228.22,228.02,7.09]
[1757598438070,5.21197597,228.22,228.02,7.09]
[1757598438266,0.03,228.15,228.02,7.09]
[1757598438869,0.03,228.1,227.89,7.09]
[1757598439071,0.03,228.1,227.91,7.09]
[1757598439267,0.03,228.1,227.92,7.09]
[1757598440570,0.03,228.06,227.92,7.09]
[1757598441070,0.03,228.06,227.87,7.09]
[1757598441372,5.21197597,228.02,227.87,7.09]
[1757598442272,0.03,228.01,227.87,7.09]
[1757598442469,0.03,227.96,227.85,294.8]
[1757598442969,0.03,227.96,227.86,7.09]
[1757598443668,0.03,227.96,227.74,7.09]
[1757598443871,0.03,227.96,227.76,7.09]
[1757598444069,0.03,227.96,227.77,62.0]
[1757598444272,0.03,227.96,227.78,7.09]
[1757598444769,0.03,228.02,227.8,7.09]
[1757598445169,0.03,228.01,227.81,64.7]
[1757598445373,0.03,228.01,227.82,7.09]
[1757598446872,0.03,228.01,227.83,26.96]
[1757598447074,0.03,228.01,227.84,7.09]
[1757598447772,0.03,228.01,227.86,6.88]
[1757598449568,5.18197597,227.99,227.86,6.88]
[1757598450874,12.90289053,228.06,227.86,6.88]
[1757598451071,5.18197597,228.02,227.86,6.88]
[1757598451270,3.34574423,228.01,227.86,6.88]
[1757598451575,5.18197597,228.02,227.86,6.88]
[1757598451773,3.34574423,228.01,227.86,6.88]
[1757598451974,5.18197597,228.02,227.86,6.88]
[1757598452177,3.34574452,228.01,227.86,6.88]
[1757598452378,3.34574452,228.0,227.86,6.88]
[1757598452579,5.18197597,228.02,227.86,6.88]
[1757598452776,3.34890359,228.01,227.86,6.88]
[1757598452975,3.34890359,228.0,227.86,6.88]
[1757598453277,3.35107794,227.99,227.86,6.88]
[1757598453480,3.3517897,227.98,227.81,6.88]
[1757598453677,3.3517897,227.97,227.81,6.88]
[1757598453879,3.3517897,227.96,227.81,6.88]
[1757598454079,5.18197597,228.0,227.81,6.88]
[1757598454274,6.32557903,227.99,227.81,6.88]
[1757598454475,6.32557903,227.98,227.81,6.88]
[1757598454674,3.3521848,227.97,227.81,6.88]
[1757598454870,5.18197597,228.0,227.81,6.88]
[1757598454871,3.3521848,227.96,227.81,6.88]
[1757598455075,5.18197597,228.0,227.81,6.88]
[1757598455276,5.18197597,227.95,227.81,6.88]
[1757598455472,6.33201086,227.94,227.76,20.17203436]
[1757598455677,5.18197597,227.9,227.76,6.88]
[1757598455873,3.35553487,227.89,227.76,6.88]
[1757598456281,5.18197597,227.9,227.76,6.88]
[1757598456682,5.18197597,227.95,227.77,6.88]
[1757598456884,6.34021924,227.94,227.77,6.88]
[1757598457081,6.34021924,227.93,227.77,6.88]
[1757598457380,5.18197597,228.02,227.77,6.88]
[1757598457581,6.34401883,228.01,227.77,6.88]
[1757598457784,6.34401883,228.0,227.79,6.88]
[1757598458085,6.34401883,227.99,227.79,6.88]
[1757598458281,6.34401883,227.98,227.79,6.88]
[1757598458485,6.34401883,227.97,227.81,6.88]
[1757598458777,6.34401883,227.96,227.81,6.88]
[1757598458982,6.34401883,227.95,227.81,6.88]
[1757598459179,5.18197597,227.91,227.73,6.88]
[1757598459386,6.35039955,227.9,227.73,6.88]
[1757598459583,3.36332869,227.89,227.73,6.88]
[1757598459879,3.36332869,227.88,227.73,6.88]
[1757598460083,3.36332869,227.87,227.73,6.88]
[1757598460276,3.37229161,227.86,227.73,6.88]
[1757598460477,6.36207235,227.85,227.73,6.88]
[1757598460684,3.37229161,227.84,227.73,6.88]
[1757598460882,3.37229161,227.83,227.72,294.76]
[1757598461082,5.18197597,227.86,227.72,294.76]
[1757598461283,6.36413081,227.85,227.72,294.76]
[1757598461478,3.37290613,227.84,227.73,6.88]
[1757598461680,3.37290613,227.83,227.73,6.88]
[1757598461882,5.18197597,227.87,227.73,6.88]
[1757598462075,6.36415926,227.86,227.73,6.88]
[1757598462278,2.99047028,227.85,227.73,6.88]
[1757598462482,5.18197597,227.87,227.73,6.88]
[1757598462686,2.99117321,227.86,227.6,6.88]
[1757598462888,2.99117321,227.85,227.62,6.88]
[1757598463081,2.99117321,227.84,227.62,6.88]
[1757598463281,5.18197597,227.87,227.62,6.88]
[1757598463583,2.9918864,227.86,227.64,6.88]
[1757598463784,2.9918864,227.85,227.64,6.88]
[1757598463983,2.9918864,227.84,227.64,6.88]
[1757598464184,5.18197597,227.87,227.64,6.88]
[1757598464382,2.99219734,227.86,227.64,6.88]
[1757598464578,2.99219734,227.85,227.64,6.88]
[1757598464791,5.18197597,227.92,227.65,6.88]
[1757598464981,2.99190346,227.91,227.65,6.88]
[1757598465286,2.99190346,227.9,227.65,6.88]